fUST/lending_fUST_20250227
["ID","MTS","AMOUNT","RATE_DAILY","PERIOD"]
[354632069,1740598264117,-151.0,0.00273973,120]
[354632070,1740598264128,-151.0,0.00273973,120]
[354632071,1740598264137,-151.0,0.00273973,120]
[354632072,1740598264147,-151.0,0.00273973,120]
[354632073,1740598264156,-151.0,0.00273973,120]
[354632074,1740598264166,-151.0,0.00273973,120]
[354632075,1740598264175,-151.880079,0.00273973,120]
[354632076,1740598264184,-151.0,0.00273973,120]
[354632077,1740598264193,-151.0,0.00273973,120]
[354632078,1740598264204,-151.0,0.00273973,120]
[354632079,1740598264213,-151.0,0.00273973,120]
[354632080,1740598264223,-151.0,0.00273973,120]
[354632081,1740598264233,-151.0,0.00273973,120]
[354632082,1740598264242,-292.0944,0.00273973,120]
[354632083,1740598264251,-173.30739,0.00273973,120]
[354632084,1740598264261,-151.0,0.00273973,120]
[354632085,1740598264271,-151.0,0.00273973,120]
[354632086,1740598264281,-151.0,0.00273973,120]
[354632087,1740598264291,-260.182124,0.00273973,120]
[354632088,1740598264300,-524.719099,0.00273973,120]
[354632089,1740598264311,-524.719099,0.00273973,120]
[354632090,1740598264320,-524.719099,0.00273973,120]
[354632091,1740598264330,-524.719099,0.00273973,120]
[354632092,1740598264340,-524.719099,0.00273973,120]
[354632093,1740598264349,-524.719099,0.00273973,120]
[354632094,1740598264359,-524.719099,0.00273973,120]
[354632095,1740598264368,-524.719099,0.00273973,120]
[354632096,1740598264378,-524.719099,0.00273973,120]
[354632097,1740598264388,-524.719099,0.00273973,120]
[354632098,1740598264398,-524.719099,0.00273973,120]
[354632099,1740598264408,-151.0,0.00273973,120]
[354632100,1740598264418,-524.719099,0.00273973,120]
[354632101,1740598264429,-151.0,0.00273973,120]
[354632102,1740598264439,-524.719099,0.00273973,120]
[354632103,1740598264448,-154.892722,0.00273973,120]
[354632104,1740598264459,-524.719099,0.00273973,120]
[354632105,1740598264468,-524.719099,0.00273973,120]
[354632106,1740598264482,-524.719099,0.00273973,120]
[354632107,1740598264491,-524.719099,0.00273973,120]
[354632108,1740598264501,-524.719099,0.00273973,120]
[354632109,1740598264511,-524.719099,0.00273973,120]
[354632110,1740598264521,-524.719106,0.00273973,120]
[354632111,1740598264531,-151.0,0.00273973,120]
[354632112,1740598264542,-152.365122,0.00273973,120]
[354632113,1740598264552,-151.0,0.00273973,120]
[354632114,1740598264562,-151.0,0.00273973,120]
[354632115,1740598264572,-151.0,0.00273973,120]
[354632116,1740598264582,-151.0,0.00273973,120]
[354632117,1740598264592,-151.0,0.00273973,120]
[354632118,1740598264604,-151.0,0.00273973,120]
[354632119,1740598264613,-151.0,0.00273973,120]
[354632120,1740598264623,-170.105496,0.00273973,120]
[354632121,1740598264634,-151.583755,0.00273973,5]
[354632122,1740598264644,-151.0,0.00273973,120]
[354632123,1740598264653,-151.0,0.00273973,120]
[354632124,1740598264663,-151.0,0.00273973,120]
[354632125,1740598264672,-266.025888,0.00273973,120]
[354632126,1740598264682,-151.0,0.00273973,120]
[354632127,1740598264693,-151.0,0.00273973,120]
[354632128,1740598264703,-151.0,0.00273973,120]
[354632129,1740598264712,-151.0,0.00273973,120]
[354632130,1740598264722,-151.0,0.00273973,120]
[354632131,1740598264733,-151.0,0.00273973,120]
[354632132,1740598264745,-279.201244,0.00273973,120]
[354632133,1740598264755,-175.461755,0.00273973,120]
[354632134,1740598264765,-255.475525,0.00273973,120]
[354632135,1740598264775,-151.0,0.00273973,120]
[354632136,1740598264786,-151.0,0.00273973,120]
[354632137,1740598264797,-151.0,0.00273973,120]
[354632138,1740598264811,-276.979418,0.00273973,120]
[354632139,1740598264821,-269.753923,0.00273973,120]
[354632140,1740598264830,-269.753923,0.00273973,120]
[354632141,1740598264842,-269.753923,0.00273973,120]
[354632142,1740598264852,-269.753923,0.00273973,120]
[354632143,1740598264864,-269.753923,0.00273973,120]
[354632144,1740598264875,-269.753923,0.00273973,120]
[354632145,1740598264884,-151.0,0.00273973,120]
[354632146,1740598264896,-269.753923,0.00273973,120]
[354632147,1740598264907,-151.0,0.00273973,120]
[354632148,1740598264918,-269.753923,0.00273973,120]
[354632149,1740598264930,-151.0,0.00273973,120]
[354632150,1740598264941,-269.753923,0.00273973,120]
[354632151,1740598264952,-151.0,0.00273973,120]
[354632152,1740598264963,-269.753923,0.00273973,120]
[354632153,1740598264975,-151.0,0.00273973,120]
[354632154,1740598264986,-269.753923,0.00273973,120]
[354632155,1740598264997,-151.0,0.00273973,120]
[354632156,1740598265007,-151.0,0.00273973,120]
[354632157,1740598265017,-151.0,0.00273973,120]
[354632158,1740598265028,-269.753923,0.00273973,120]
[354632159,1740598265038,-269.753923,0.00273973,120]
[354632160,1740598265048,-269.753923,0.00273973,120]
[354632161,1740598265058,-151.0,0.00273973,120]
[354632162,1740598265068,-269.753923,0.00273973,120]
[354632163,1740598265079,-151.0,0.00273973,120]
[354632164,1740598265089,-269.753923,0.00273973,120]
[354632165,1740598265099,-151.0,0.00273973,120]
[354632166,1740598265109,-269.753923,0.00273973,120]
[354632167,1740598265120,-269.753923,0.00273973,120]
[354632168,1740598265130,-269.753923,0.00273973,120]
[354632169,1740598265141,-151.0,0.00273973,120]
[354632170,1740598265152,-269.753931,0.00273973,120]
[354632171,1740598265163,-151.0,0.00273973,120]
[354632172,1740598265173,-151.0,0.00273973,120]
[354632173,1740598265183,-151.0,0.00273973,120]
[354632174,1740598265192,-151.0,0.00273973,120]
[354632175,1740598265202,-151.0,0.00273973,120]
[354632176,1740598265212,-197.014362,0.00273973,120]
[354632177,1740598265225,-151.0,0.00273973,120]
[354632178,1740598265235,-151.0,0.00273973,120]
[354632179,1740598265245,-151.0,0.00273973,120]
[354632180,1740598265255,-151.0,0.00273973,120]
[354632181,1740598265265,-151.0,0.00273973,120]
[354632182,1740598265276,-151.0,0.00273973,120]
[354632183,1740598265286,-151.0,0.00273973,120]
[354632184,1740598265297,-151.0,0.00273973,120]
[354632185,1740598265307,-151.0,0.00273973,120]
[354632186,1740598265317,-151.0,0.00273973,120]
[354632187,1740598265328,-151.0,0.00273973,120]
[354632188,1740598265338,-151.0,0.00273973,120]
[354632189,1740598265348,-151.0,0.00273973,120]
[354632190,1740598265358,-151.0,0.00273973,120]
[354632191,1740598265370,-238.928846,0.00273973,120]
[354632192,1740598265379,-151.0,0.00273973,120]
[354632193,1740598265390,-151.0,0.00273973,120]
[354632194,1740598265400,-226.829512,0.00273973,120]
[354632195,1740598265411,-183.081624,0.00273973,120]
[354632196,1740598265422,-328.110813,0.00273973,120]
[354632197,1740598265434,-757.78424753,0.00275072,81]
[354632198,1740598265445,-160.0,0.00276479,4]
[354632199,1740598265455,-735.43,0.002791,87]
[354632200,1740598265465,-735.43,0.002791,87]
[354632201,1740598265481,-735.43,0.002791,87]
[354632202,1740598265491,-735.43,0.002791,87]
[354632203,1740598265502,-735.43,0.002791,87]
[354632204,1740598265513,-735.43,0.002791,87]
[354632205,1740598265524,-735.43,0.002791,87]
[354632206,1740598265535,-735.43,0.002791,87]
[354632207,1740598265546,-735.43,0.002791,87]
[354632208,1740598265556,-735.43,0.002791,87]
[354632209,1740598265566,-735.43,0.002791,87]
[354632210,1740598265576,-735.43,0.002791,87]
[354632211,1740598265586,-735.43,0.002791,87]
[354632212,1740598265596,-735.43,0.002791,87]
[354632213,1740598265607,-735.43,0.002791,87]
[354632214,1740598265617,-735.43,0.002791,87]
[354632215,1740598265627,-735.43,0.002791,87]
[354632216,1740598265637,-735.43,0.002791,87]
[354632217,1740598265647,-735.43,0.002791,87]
[354632218,1740598265658,-735.43,0.002791,87]
[354632219,1740598265668,-735.43,0.002791,87]
[354632220,1740598265677,-735.43,0.002791,87]
[354632221,1740598265688,-735.43,0.002791,87]
[354632222,1740598265698,-735.43,0.002791,87]
[354632223,1740598265708,-1000.0,0.0028,120]
[354632224,1740598265718,-6500.0,0.00281049,14]
[354632225,1740598265729,-6500.0,0.00281049,14]
[354632226,1740598265740,-160.0,0.00285361,5]
[354632227,1740598265749,-3000.0,0.002889,120]
[354632228,1740598265759,-160.0,0.00294243,6]
[354632229,1740598265769,-5000.0,0.002969,120]
[354632230,1740598265778,-48611.8964153,0.00299019,90]
[354632231,1740598265788,-175.08971561,0.003,120]
[354632232,1740598265798,-600.0,0.003,120]
[354632233,1740598265807,-500.0,0.003,30]
[354632234,1740598265820,-2000.0,0.003,120]
[354632235,1740598265829,-500.0,0.003,120]
[354632236,1740598265840,-200.0,0.003,120]
[354632237,1740598265849,-1512.0338,0.003,71]
[354632238,1740598265859,-200000.000001,0.003,120]
[354632239,1740598265869,-160.0,0.00303125,7]
[354632240,1740598265879,-7000.0,0.00310106,14]
[354632241,1740598265888,-7000.0,0.00310106,14]
[354632242,1740598265898,-160.0,0.00312007,8]
[354632243,1740598265908,-200.0,0.00314,120]
[354632244,1740598265918,-160.0,0.00320889,9]
[354632245,1740598265928,-1425.0,0.00323,86]
[354632246,1740598265939,-160.0,0.0032977,10]
[354632247,1740598265948,-2734.752984,0.0033,120]
[354632248,1740598265960,-20000.0,0.0033,120]
[354632249,1740598265970,-179.56903432,0.00337708,60]
[354632250,1740598265984,-160.0,0.00338652,11]
[354632251,1740598265993,-7500.0,0.00340304,14]
[354632252,1740598266003,-7500.0,0.00340304,14]
[354632253,1740598266013,-1384.676,0.00347259,98]
[354632254,1740598266023,-160.0,0.00347534,12]
[354632255,1740598266033,-5000.0,0.0035,120]
[354632256,1740598266043,-524.97,0.0035,60]
[354632257,1740598266052,-160.0,0.00350956,120]
[354632258,1740598266064,-160.0,0.00356416,13]
[354632259,1740598266074,-160.0,0.00365298,14]
[354632260,1740598266084,-276.20925805,0.00365298,5]
[354632261,1740598266093,-8000.0,0.003716,14]
[354632262,1740598266103,-8000.0,0.003716,14]
[354632263,1740598266112,-1000.0,0.0038,120]
[354632264,1740598266123,-48611.8964153,0.00394766,120]
[354632265,1740598266135,-398.0,0.00398989,120]
[354632266,1740598266144,-1000.0,0.004,120]
[354632267,1740598266154,-5576.12673126,0.004,120]
[354632268,1740598266164,-600.0,0.004,120]
[354632269,1740598266173,-500.0,0.004,30]
[354632270,1740598266183,-2000.0,0.004,120]
[354632271,1740598266192,-500.0,0.004,120]
[354632272,1740598266202,-200.0,0.004,120]
[354632273,1740598266212,-160.0,0.00402875,120]
[354632274,1740598266222,-8500.0,0.00403958,14]
[354632275,1740598266236,-8500.0,0.00403958,14]
[354632276,1740598266246,-1426.1705,0.0040829,117]
[354632277,1740598266257,-5000.0,0.0041,120]
[354632278,1740598266267,-20000.0,0.0041,120]
[354632279,1740598266277,-1000.0,0.0043,120]
[354632280,1740598266287,-5000.0,0.0043,120]
[354632281,1740598266298,-60108.69556549,0.00433333,120]
[354632282,1740598266307,-9000.0,0.00437343,14]
[354632283,1740598266317,-9000.0,0.00437343,14]
[354632284,1740598266326,-1000.0,0.004377,120]
[354632285,1740598266336,-1695.36,0.0044,93]
[354632286,1740598266346,-200.0,0.00444,120]
[354632287,1740598266356,-5000.0,0.0045,120]
[354632288,1740598266366,-165.0000008,0.0045,120]
[354632289,1740598266376,-1057.12,0.0045,60]
[354632290,1740598266386,-160.0,0.00451595,120]
[354632291,1740598266396,-273.0,0.00454581,120]
[354632292,1740598266406,-273.0,0.00454581,120]
[354632293,1740598266416,-273.0,0.00454581,120]
[354632294,1740598266426,-273.0,0.00454581,120]
[354632295,1740598266436,-273.0,0.00454581,120]
[354632296,1740598266446,-273.0,0.00454581,120]
[354632297,1740598266456,-273.0,0.00454581,120]
[354632298,1740598266466,-273.0,0.00454581,120]
[354632299,1740598266479,-273.0,0.00454581,120]
[354632300,1740598266490,-273.0,0.00454581,120]
[354632301,1740598266500,-273.0,0.00454581,120]
[354632302,1740598266510,-273.0,0.00454581,120]
[354632303,1740598266520,-273.0,0.00454581,120]
[354632304,1740598266531,-273.0,0.00454581,120]
[354632305,1740598266541,-340.0,0.00454649,120]
[354632306,1740598266550,-340.0,0.00454649,120]
[354632307,1740598266560,-340.0,0.00454649,120]
[354632308,1740598266571,-340.0,0.00454649,120]
[354632309,1740598266738,-340.0,0.00454649,120]
[354632310,1740598266748,-340.0,0.00454649,120]
[354632311,1740598266757,-340.0,0.00454649,120]
[354632312,1740598266768,-340.0,0.00454649,120]
[354632313,1740598266778,-340.0,0.00454649,120]
[354632314,1740598266787,-340.0,0.00454649,120]
[354632315,1740598266798,-340.0,0.00454649,120]
[354632316,1740598266808,-340.0,0.00454649,120]
[354632317,1740598266820,-340.0,0.00454649,120]
[354632318,1740598266830,-340.0,0.00454649,120]
[354632319,1740598266841,-273.0,0.00454947,120]
[354632320,1740598266851,-273.0,0.00454947,120]
[354632321,1740598266860,-273.0,0.00454947,120]
[354632322,1740598266870,-273.0,0.00454947,120]
[354632323,1740598266880,-273.0,0.00454947,120]
[354632324,1740598266890,-273.0,0.00454947,120]
[354632325,1740598266900,-273.0,0.00454947,120]
[354632326,1740598266910,-273.0,0.00454947,120]
[354632327,1740598266919,-273.0,0.00454947,120]
[354632328,1740598266929,-273.0,0.00454947,120]
[354632329,1740598266938,-273.0,0.00454947,120]
[354632330,1740598266950,-273.0,0.00454947,120]
[354632331,1740598266959,-273.0,0.00454947,120]
[354632332,1740598266969,-273.0,0.00454947,120]
[354632333,1740598266983,-340.0,0.00455021,120]
[354632334,1740598266993,-340.0,0.00455021,120]
[354632335,1740598267003,-340.0,0.00455021,120]
[354632336,1740598267012,-340.0,0.00455021,120]
[354632337,1740598267022,-340.0,0.00455021,120]
[354632338,1740598267031,-340.0,0.00455021,120]
[354632339,1740598267041,-340.0,0.00455021,120]
[354632340,1740598267050,-340.0,0.00455021,120]
[354632341,1740598267061,-340.0,0.00455021,120]
[354632342,1740598267071,-340.0,0.00455021,120]
[354632343,1740598267081,-340.0,0.00455021,120]
[354632344,1740598267090,-340.0,0.00455021,120]
[354632345,1740598267099,-340.0,0.00455021,120]
[354632346,1740598267109,-340.0,0.00455021,120]
[354632347,1740598267119,-273.0,0.00455708,120]
[354632348,1740598267128,-273.0,0.00455708,120]
[354632349,1740598267137,-273.0,0.00455708,120]
[354632350,1740598267146,-273.0,0.00455708,120]
[354632351,1740598267156,-273.0,0.00455708,120]
[354632352,1740598267166,-273.0,0.00455708,120]
[354632353,1740598267175,-273.0,0.00455708,120]
[354632354,1740598267185,-273.0,0.00455708,120]
[354632355,1740598267194,-273.0,0.00455708,120]
[354632356,1740598267204,-273.0,0.00455708,120]
[354632357,1740598267213,-273.0,0.00455708,120]
[354632358,1740598267223,-273.0,0.00455708,120]
[354632359,1740598267237,-273.0,0.00455708,120]
[354632360,1740598267246,-273.0,0.00455708,120]
[354632361,1740598267256,-340.0,0.00455771,120]
[354632362,1740598267266,-340.0,0.00455771,120]
[354632363,1740598267275,-340.0,0.00455771,120]
[354632364,1740598267285,-340.0,0.00455771,120]
[354632365,1740598267294,-340.0,0.00455771,120]
[354632366,1740598267304,-340.0,0.00455771,120]
[354632367,1740598267314,-340.0,0.00455771,120]
[354632368,1740598267324,-340.0,0.00455771,120]
[354632369,1740598267333,-340.0,0.00455771,120]
[354632370,1740598267343,-340.0,0.00455771,120]
[354632371,1740598267353,-340.0,0.00455771,120]
[354632372,1740598267363,-340.0,0.00455771,120]
[354632373,1740598267372,-340.0,0.00455771,120]
[354632374,1740598267382,-340.0,0.00455771,120]
[354632375,1740598267391,-160.0,0.00458341,120]
[354632376,1740598267401,-1008.38,0.0046,120]
[354632377,1740598267410,-2504.35373204,0.00471725,14]
[354632378,1740598267420,-9500.0,0.00471725,14]
[354632379,1740598267431,-5000.0,0.0048,120]
[354632380,1740598267440,-245.4,0.0048,120]
[354632381,1740598267450,-160.0,0.00487314,120]
[354632382,1740598267460,-160.0,0.00488414,120]
[354632383,1740598267470,-3000.0,0.004889,120]
[354632384,1740598267483,-160.0,0.00489351,120]
[354632385,1740598267493,-6408.11477971,0.0049,120]
[354632386,1740598267502,-9026.26433084,0.0049,120]
[354632387,1740598267512,-182878.99741853,0.0049,120]
[354632388,1740598267522,-160.406554,0.004956,60]
[354632389,1740598267532,-5000.0,0.004969,120]
[354632390,1740598267542,-48611.8964153,0.0049782,120]
[354632391,1740598267552,-1000.0,0.005,120]
[354632392,1740598267563,-1533.39217932,0.005,120]
[354632393,1740598267572,-15000.0,0.005,90]
[354632394,1740598267582,-600.0,0.005,120]
[354632395,1740598267592,-1023.1266183,0.005,120]
[354632396,1740598267602,-500.0,0.005,30]
[354632397,1740598267611,-2000.0,0.005,120]
[354632398,1740598267621,-500.0,0.005,120]
[354632399,1740598267630,-200.0,0.005,120]
[354632400,1740598267640,-3005.0,0.005,120]
[354632401,1740598267649,-1574.14980492,0.005,120]
[354632402,1740598267659,-1770.28353,0.0050223,82]
[354632403,1740598267669,-735.43,0.005045,87]
[354632404,1740598267678,-735.43,0.005045,87]
[354632405,1740598267688,-735.43,0.005045,87]
[354632406,1740598267697,-735.43,0.005045,87]
[354632407,1740598267707,-735.43,0.005045,87]
[354632408,1740598267716,-735.43,0.005045,87]
[354632409,1740598267728,-735.43,0.005045,87]
[354632410,1740598267737,-735.43,0.005045,87]
[354632411,1740598267747,-735.43,0.005045,87]
[354632412,1740598267756,-735.43,0.005045,87]
[354632413,1740598267766,-735.43,0.005045,87]
[354632414,1740598267775,-735.43,0.005045,87]
[354632415,1740598267784,-735.43,0.005045,87]
[354632416,1740598267794,-735.43,0.005045,87]
[354632417,1740598267807,-735.43,0.005045,87]
[354632418,1740598267816,-735.43,0.005045,87]
[354632419,1740598267825,-735.43,0.005045,87]
[354632420,1740598267836,-735.43,0.005045,87]
[354632421,1740598267846,-735.43,0.005045,87]
[354632422,1740598267855,-735.43,0.005045,87]
[354632423,1740598267865,-735.43,0.005045,87]
[354632424,1740598267874,-735.43,0.005045,87]
[354632425,1740598267886,-735.43,0.005045,87]
[354632426,1740598267896,-735.43,0.005045,87]
[354632427,1740598267906,-179.56903432,0.00506563,60]
[354632428,1740598267916,-3091.50131813,0.00507076,14]
[354632429,1740598267925,-757.78424753,0.00515245,120]
[354632430,1740598267935,-11235.74840486,0.0052,120]
[354632431,1740598267945,-20000.0,0.0052,120]
[354632432,1740598267954,-232116.55619226,0.0053,120]
[354632433,1740598267964,-812.3,0.00543,120]
[354632434,1740598267973,-303634.88905736,0.00544,120]
[354632435,1740598267986,-1531.9,0.0054839,109]
[354632436,1740598267996,-1000.0,0.0055,120]
[354632437,1740598268005,-5000.0,0.0055,120]
[354632438,1740598268015,-5248.43970358,0.0056,120]
[354632439,1740598268024,-200.0,0.00584,120]
[354632440,1740598268033,-5000.0,0.0059,120]
[354632441,1740598268042,-1000.0,0.0059,120]
[354632442,1740598268051,-1000.0,0.0059,120]
[354632443,1740598268060,-48611.8964153,0.00598212,120]
[354632444,1740598268070,-119773.66306962,0.00599898,120]
[354632445,1740598268079,-1000.0,0.00599999,120]
[354632446,1740598268088,-350.0,0.006,120]
[354632447,1740598268097,-5000.0,0.006,60]
[354632448,1740598268106,-160.0,0.006,120]
[354632449,1740598268115,-500.0,0.006,30]
[354632450,1740598268124,-2000.0,0.006,120]
[354632451,1740598268133,-500.0,0.006,120]
[354632452,1740598268143,-200.0,0.006,120]
[354632453,1740598268153,-1732.9,0.006,76]
[354632454,1740598268163,-3362.44,0.006,120]
[354632455,1740598268172,-2000.0,0.006,120]
[354632456,1740598268181,-524.97,0.006,60]
[354632457,1740598268190,-23115.18819297,0.006,120]
[354632458,1740598268199,-7362.99112115,0.00605379,30]
[354632459,1740598268208,-50000.00000099,0.00609,120]
[354632460,1740598268218,-150.0,0.00621696,14]
[354632461,1740598268230,-150.0,0.00621696,14]
[354632462,1740598268239,-250.02784012,0.00621696,14]
[354632463,1740598268247,-40123.46227942,0.00629999,120]
[354632464,1740598268256,-160.0,0.00636106,120]
[354632465,1740598268265,-490.01046888,0.00644952,120]
[354632466,1740598268274,-1705.9,0.00645,85]
[354632467,1740598268283,-77174.67352873,0.00645,120]
[354632468,1740598268292,-2000.0,0.00649,120]
[354632469,1740598268302,-5000.0,0.0065,120]
[354632470,1740598268310,-1316.985544,0.00677,91]
[354632471,1740598268320,-500.0,0.00678897,120]
[354632472,1740598268329,-3000.0,0.0068,120]
[354632473,1740598268339,-500.0,0.00684904,120]
[354632474,1740598268348,-500.0,0.00684904,120]
[354632475,1740598268357,-500.0,0.00684904,120]
[354632476,1740598268367,-500.0,0.00684904,120]
[354632477,1740598268376,-500.0,0.00684904,120]
[354632478,1740598268385,-500.0,0.00684904,120]
[354632479,1740598268394,-500.0,0.00684904,120]
[354632480,1740598268403,-500.0,0.00684904,120]
[354632481,1740598268413,-500.0,0.00684904,120]
[354632482,1740598268423,-500.0,0.00684904,120]
[354632483,1740598268432,-500.0,0.00684904,120]
[354632484,1740598268441,-500.0,0.00684904,120]
[354632485,1740598268451,-500.0,0.00684904,120]
[354632486,1740598268460,-500.0,0.00684904,120]
[354632487,1740598268470,-500.0,0.00684904,120]
[354632488,1740598268483,-500.0,0.00684904,120]
[354632489,1740598268492,-500.0,0.00684904,120]
[354632490,1740598268501,-500.0,0.00684904,120]
[354632491,1740598268510,-500.0,0.00684904,120]
[354632492,1740598268519,-500.0,0.00684904,120]
[354632493,1740598268528,-152.40590414,0.00684904,120]
[354632494,1740598268538,-1719.33,0.00684931,120]
[354632495,1740598268549,-1719.33,0.00684931,120]
[354632496,1740598268559,-1719.33,0.00684931,120]
[354632497,1740598268570,-1719.33,0.00684931,120]
[354632498,1740598268580,-1719.33,0.00684931,120]
[354632499,1740598268590,-1719.33,0.00684931,120]
[354632500,1740598268600,-1719.33,0.00684931,120]
[354632501,1740598268611,-1719.33,0.00684931,120]
[354632502,1740598268620,-1719.33,0.00684931,120]
[354632503,1740598268630,-1719.33,0.00684931,120]
[354632504,1740598268640,-1719.33,0.00684931,120]
[354632505,1740598268650,-1719.33,0.00684931,120]
[354632506,1740598268660,-1719.33,0.00684931,120]
[354632507,1740598268670,-1719.33,0.00684931,120]
[354632508,1740598268680,-1719.33,0.00684931,120]
[354632509,1740598268690,-1719.33,0.00684931,120]
[354632510,1740598268699,-1719.33,0.00684931,120]
[354632511,1740598268709,-1719.33,0.00684931,120]
[354632512,1740598268719,-1719.33,0.00684931,120]
[354632513,1740598268732,-1719.33,0.00684931,120]
[354632514,1740598268742,-1719.33,0.00684931,120]
[354632515,1740598268752,-1719.33,0.00684931,120]
[354632516,1740598268761,-1719.33,0.00684931,120]
[354632517,1740598268770,-1719.490421,0.00684931,120]
[354632518,1740598268780,-3000.0,0.006889,120]
[354632519,1740598268793,-5000.0,0.0069,120]
[354632520,1740598268806,-2051.87782505,0.0069,120]
[354632521,1740598268822,-24305.9482077,0.00695939,120]
[354632522,1740598268833,-5000.0,0.006969,120]
[354632523,1740598268846,-10000.0,0.00699,120]
[354632524,1740598268859,-1000.0,0.00699999,120]
[354632525,1740598268871,-20000.0,0.007,120]
[354632526,1740598268880,-14521.83317801,0.007,120]
[354632527,1740598268894,-2000.0,0.007,120]
[354632528,1740598268906,-67804.3549526,0.007,120]
[354632529,1740598268918,-500.0,0.007,120]
[354632530,1740598268929,-200.0,0.007,120]
[354632531,1740598268940,-198.90163254,0.007,120]
[354632532,1740598268951,-415.06454285,0.007,31]
[354632533,1740598268963,-151.0,0.00709096,120]
[354632534,1740598268975,-37609.66436133,0.0071,120]
[354632535,1740598268987,-2000.0,0.0071,120]
[354632536,1740598268998,-1057.12,0.0071,60]
[354632537,1740598269011,-500.0,0.00714628,120]
[354632538,1740598269023,-500.0,0.00714628,120]
[354632539,1740598269036,-200678.95451949,0.00717428,120]
[354632540,1740598269047,-2000.0,0.0072,120]
[354632541,1740598269058,-2000.0,0.0072,120]
[354632542,1740598269068,-2000.0,0.0072,120]
[354632543,1740598269079,-2000.0,0.0072,120]
[354632544,1740598269091,-2000.0,0.0072,120]
[354632545,1740598269102,-2000.0,0.0072,120]
[354632546,1740598269113,-2000.0,0.0072,120]
[354632547,1740598269124,-2000.0,0.0072,120]
[354632548,1740598269136,-2000.0,0.0072,120]
[354632549,1740598269148,-2000.0,0.0072,120]
[354632550,1740598269158,-1008.38,0.0072,120]
[354632551,1740598269169,-20000.0,0.00729,120]
[354632552,1740598269180,-735.43,0.007298,87]
[354632553,1740598269190,-735.43,0.007298,87]
[354632554,1740598269201,-735.43,0.007298,87]
[354632555,1740598269213,-735.43,0.007298,87]
[354632556,1740598269223,-735.43,0.007298,87]
[354632557,1740598269237,-735.43,0.007298,87]
[354632558,1740598269248,-735.43,0.007298,87]
[354632559,1740598269260,-735.43,0.007298,87]
[354632560,1740598269272,-735.43,0.007298,87]
[354632561,1740598269284,-735.43,0.007298,87]
[354632562,1740598269296,-735.43,0.007298,87]
[354632563,1740598269307,-735.43,0.007298,87]
[354632564,1740598269319,-735.43,0.007298,87]
[354632565,1740598269330,-735.43,0.007298,87]
[354632566,1740598269342,-735.43,0.007298,87]
[354632567,1740598269354,-735.43,0.007298,87]
[354632568,1740598269366,-735.43,0.007298,87]